bitfinex/quotes_SOLUSD_20251223
["timestamp","ask_amount","ask_price","bid_price","bid_amount"]
[1766485339451,10.65876795,124.4,124.37,15.37]
[1766485339649,33.38113326,124.4,124.37,15.37]
[1766485339954,0.71,124.39,124.37,15.37]
[1766485340150,0.71,124.39,124.37,14.68]
[1766485340546,8.74941649,124.39,124.37,14.68]
[1766485340746,23.42941649,124.39,124.37,14.68]
[1766485341444,23.42941649,124.39,124.37,15.37]
[1766485341648,8.74941649,124.39,124.37,15.37]
[1766485345655,0.71,124.39,124.37,15.37]
[1766485345952,8.03890963,124.4,124.38,0.69]
[1766485346550,41.90827283,124.41,124.38,0.69]
[1766485348143,11.14767296,124.41,124.39,0.69]
[1766485351254,11.14767296,124.41,124.37,44.89007986]
[1766485351458,11.14767296,124.41,124.38,0.69]
[1766485355563,10.43767296,124.41,124.38,0.69]
[1766485356662,11.11767296,124.41,124.38,0.69]
[1766485359359,11.11767296,124.41,124.38,3.67123759]
[1766485368571,11.11767296,124.41,124.38,0.69]
[1766485368764,11.11767296,124.41,124.38,3.67123759]
[1766485376362,11.11767296,124.41,124.38,0.69]
[1766485386081,11.11767296,124.41,124.38,2.98123759]
[1766485386385,10.43767296,124.41,124.39,0.72]
[1766485387089,10.43767296,124.41,124.39,15.4]
[1766485387290,10.43767296,124.41,124.4,0.72]
[1766485388989,10.43767296,124.41,124.39,2.98123759]
[1766485389196,10.43767296,124.41,124.39,18.38123759]
[1766485389372,10.43767296,124.41,124.4,0.72]
[1766485392693,0.71,124.42,124.4,0.72]
[1766485392897,10.43767296,124.41,124.4,0.72]
[1766485395905,10.43767296,124.41,124.39,15.4]
[1766485398001,0.1,124.43,124.39,17.66123759]
[1766485398175,0.1,124.43,124.4,2.98123759]
[1766485398505,0.1,124.43,124.41,0.72]
[1766485408811,0.81,124.43,124.41,0.72]
[1766485423622,0.1,124.44,124.42,0.69]
[1766485423804,24.23806975,124.45,124.44,0.69]
[1766485424201,0.1,124.45,124.44,0.69]
[1766485424704,0.1,124.46,124.45,0.69]
[1766485432014,0.1,124.46,124.44,25.87767296]
[1766485432218,0.78,124.46,124.43,15.35]
[1766485432432,0.78,124.46,124.43,25.88767296]
[1766485432624,0.78,124.46,124.43,15.35]
[1766485438241,0.1,124.46,124.44,0.69]
[1766485447356,0.77,124.46,124.44,0.69]
[1766485447540,2.0074108,124.46,124.43,0.66]
[1766485447733,0.67,124.43,124.41,14.66]
[1766485448139,0.67,124.43,124.41,15.32]
[1766485451258,24.14001207,124.44,124.41,15.32]
[1766485451451,24.81001207,124.44,124.41,15.32]
[1766485455752,0.67,124.44,124.41,16.5674108]
[1766485455929,24.80806975,124.45,124.42,0.66]
[1766485456356,24.80806975,124.45,124.43,0.66]
[1766485456737,24.80806975,124.45,124.42,2.5674108]
[1766485457055,0.67,124.44,124.42,2.5674108]
[1766485457655,0.67,124.45,124.42,10.60466623]
[1766485457964,0.67,124.45,124.43,14.66]
[1766485458660,0.77,124.46,124.44,0.66]
[1766485472873,0.1,124.46,124.44,0.66]
[1766485473369,0.82,124.46,124.44,0.66]
[1766485483656,0.1,124.46,124.44,3.63875511]
[1766485486982,0.1,124.46,124.45,0.71]
[1766485487659,0.1,124.46,124.44,2.97875511]
[1766485487868,0.1,124.46,124.44,3.68875511]
[1766485488089,0.1,124.46,124.45,0.71]
[1766485488583,0.1,124.46,124.45,15.37]
[1766485492290,0.1,124.47,124.46,0.71]
[1766485501194,0.1,124.47,124.45,26.61767296]
[1766485501396,0.1,124.47,124.45,15.37]
[1766485521410,0.1,124.47,124.45,18.34875511]
[1766485522916,0.1,124.47,124.45,25.67404496]
[1766485523107,0.1,124.47,124.46,0.66]
[1766485523408,0.1,124.48,124.46,0.66]
[1766485523603,0.79,124.48,124.46,0.66]
[1766485523795,0.79,124.48,124.46,3.63875511]
[1766485525122,0.1,124.48,124.46,3.63875511]
[1766485528111,0.1,124.48,124.46,0.66]
[1766485530494,0.79,124.48,124.46,0.66]
[1766485530695,0.79,124.48,124.45,25.9124049]
[1766485530895,0.79,124.48,124.45,0.66]
[1766485531503,0.79,124.48,124.45,15.32]
[1766485532322,0.79,124.48,124.45,23.35532154]
[1766485533618,0.79,124.48,124.46,0.66]
[1766485551041,0.79,124.48,124.45,43.84129865]
[1766485551346,0.79,124.48,124.46,14.66]
[1766485556553,0.79,124.48,124.46,15.33]
[1766485557548,0.79,124.48,124.46,0.67]
[1766485558038,0.1,124.48,124.46,15.33]
[1766485558223,0.1,124.48,124.47,0.67]
[1766485560348,0.1,124.51,124.48,0.67]
[1766485560548,0.1,124.51,124.49,15.33]
[1766485561527,0.1,124.51,124.49,14.66]
[1766485562231,0.79,124.51,124.49,14.66]
[1766485562948,0.1,124.51,124.5,2.57587264]
[1766485563150,0.1,124.52,124.5,2.57587264]
[1766485564231,0.1,124.52,124.51,16.56587264]
[1766485564456,0.1,124.52,124.51,14.66]
[1766485565748,0.1,124.52,124.51,15.33]
[1766485568250,0.1,124.52,124.51,14.66]
[1766485569137,11.22767296,124.53,124.51,16.56587264]
[1766485569357,11.22767296,124.53,124.52,1.90587264]
[1766485570041,10.53767296,124.53,124.52,1.90587264]
[1766485570245,11.20767296,124.53,124.52,1.90587264]
[1766485570753,0.77,124.53,124.52,1.90587264]
[1766485574269,0.77,124.53,124.51,14.66]
[1766485574444,0.77,124.53,124.52,1.90587264]
[1766485574958,0.1,124.53,124.52,1.90587264]
[1766485576558,0.77,124.53,124.52,1.90587264]
[1766485577362,0.1,124.53,124.52,1.90587264]
[1766485577745,0.1,124.53,124.51,15.34]
[1766485577945,0.1,124.53,124.52,1.90587264]
[1766485578363,0.77,124.54,124.52,1.90587264]
[1766485579492,11.32767296,124.56,124.53,2.58587264]
[1766485579763,11.32767296,124.56,124.54,1.90587264]
[1766485579764,0.77,124.56,124.54,1.90587264]
[1766485579974,0.77,124.56,124.53,17.24587264]
[1766485580342,0.67,124.55,124.53,14.66]
[1766485580543,0.67,124.55,124.53,16.56587264]
[1766485582573,0.77,124.59,124.54,16.56587264]
[1766485582875,0.77,124.59,124.55,1.90587264]
[1766485583053,0.67,124.58,124.54,12.51965283]
[1766485583863,0.67,124.58,124.54,20.54908398]
[1766485584674,0.67,124.58,124.54,18.64321134]
[1766485584874,0.67,124.58,124.54,20.54908398]
[1766485587276,0.67,124.58,124.55,1.90587264]
[1766485588676,0.67,124.58,124.56,1.90587264]
[1766485589055,0.1,124.59,124.56,1.90587264]
[1766485589056,0.1,124.59,124.57,1.90587264]
[1766485589980,0.1,124.6,124.58,1.90587264]
[1766485591181,0.42,124.6,124.58,1.90587264]
[1766485595079,0.42,124.6,124.57,2.58587264]
[1766485595659,0.1,124.6,124.57,0.68]
[1766485595861,0.32,124.59,124.57,2.58587264]
[1766485596165,0.32,124.59,124.57,0.68]
[1766485596370,0.32,124.59,124.57,3.65250253]
[1766485598783,0.32,124.59,124.56,0.67]
[1766485598985,0.32,124.59,124.57,2.97250253]
[1766485599185,0.32,124.59,124.56,3.64250253]
[1766485600488,0.32,124.59,124.57,2.97250253]
[1766485602188,0.42,124.6,124.58,2.97250253]
[1766485603891,0.42,124.6,124.57,0.67]
[1766485604076,0.42,124.6,124.58,2.97250253]
[1766485607388,0.1,124.6,124.59,0.67]
[1766485607709,0.1,124.6,124.59,3.64250253]
[1766485607873,0.1,124.6,124.59,2.97250253]
[1766485608480,0.1,124.6,124.57,24.08349854]
[1766485608481,0.42,124.6,124.57,27.72600107]
[1766485608802,0.42,124.6,124.57,3.64250253]
[1766485611396,0.42,124.6,124.58,0.67]
[1766485611793,0.42,124.6,124.58,3.64250253]
[1766485611996,0.1,124.6,124.59,2.97250253]
[1766485612484,0.1,124.6,124.58,3.64250253]
[1766485615699,0.1,124.6,124.58,0.67]
[1766485615892,0.1,124.6,124.58,3.64250253]
[1766485623884,10.43767296,124.62,124.6,0.67]
[1766485624089,18.78207375,124.62,124.59,0.67]
[1766485624584,18.78207375,124.62,124.59,3.64250253]
[1766485627016,0.32,124.62,124.6,2.97250253]
[1766485627404,0.32,124.62,124.59,0.68]
[1766485627720,0.32,124.62,124.6,2.97250253]
[1766485628608,8.34391246,124.63,124.6,3.65250253]
[1766485629513,0.32,124.62,124.59,3.65250253]
[1766485630624,33.44114543,124.64,124.59,0.68]
[1766485630796,0.32,124.63,124.61,2.97250253]
[1766485631491,33.44114543,124.64,124.61,3.65250253]
[1766485631913,33.44114543,124.64,124.61,0.68]
[1766485632098,33.44114543,124.64,124.61,3.65250253]
[1766485632299,33.44114543,124.64,124.61,0.68]
[1766485634491,33.44114543,124.64,124.61,3.65250253]
[1766485637313,33.12114543,124.64,124.59,23.04272786]
[1766485637507,0.32,124.63,124.59,3.65250253]
[1766485638102,0.32,124.63,124.6,3.65250253]
[1766485639000,38.51891179,124.64,124.6,2.97250253]
[1766485639201,0.42,124.66,124.63,3.65250253]
[1766485639403,0.42,124.66,124.63,0.68]
[1766485639614,0.42,124.66,124.64,2.97250253]
[1766485640208,0.1,124.66,124.64,2.97250253]
[1766485640525,0.42,124.66,124.64,2.97250253]
[1766485641114,0.1,124.66,124.64,3.65250253]
[1766485641299,0.1,124.66,124.64,0.68]
[1766485642618,0.32,124.65,124.62,0.68]
[1766485642799,0.32,124.65,124.62,3.65250253]
[1766485642995,24.41928907,124.65,124.62,2.97250253]
[1766485643196,24.41928907,124.65,124.63,0.68]
[1766485643416,0.32,124.65,124.63,3.65250253]
[1766485643823,32.54138694,124.66,124.63,3.65250253]
[1766485644119,24.51928907,124.66,124.64,2.97250253]
[1766485644307,0.42,124.66,124.64,3.65250253]
[1766485646622,0.42,124.66,124.64,0.68]
[1766485648314,8.44188207,124.66,124.64,3.65250253]
[1766485648517,16.46652816,124.66,124.64,3.65250253]
[1766485650628,16.46652816,124.66,124.64,0.68]
[1766485654230,16.14652816,124.66,124.64,3.65250253]
[1766485654530,8.12188207,124.66,124.64,3.65250253]
[1766485657716,0.1,124.66,124.64,3.65250253]
[1766485658033,0.1,124.66,124.64,2.5802321]
[1766485662232,0.1,124.66,124.64,0.68]
[1766485662528,0.42,124.66,124.63,2.6102321]
[1766485662903,0.42,124.66,124.63,1.9002321]
[1766485663103,0.42,124.66,124.64,0.71]
[1766485663718,8.44182616,124.66,124.64,0.71]
[1766485665426,8.12182616,124.66,124.64,0.71]
[1766485668036,8.44182616,124.66,124.63,16.04929218]
[1766485668338,8.44182616,124.66,124.64,0.71]
[1766485670728,9.83069986,124.64,124.55,0.71]
[1766485670928,9.83069986,124.64,124.54,40.14598846]
[1766485670929,0.22,124.63,124.6,2.6102321]
[1766485671118,0.22,124.63,124.61,0.71]
[1766485671437,9.83069986,124.64,124.61,0.71]
[1766485671619,8.02664829,124.63,124.61,0.71]
[1766485672837,16.27087092,124.63,124.59,0.71]
[1766485673024,16.27087092,124.63,124.6,0.71]
[1766485673338,8.24422263,124.63,124.6,0.71]
[1766485673525,16.27087092,124.62,124.6,0.71]
[1766485675828,24.51564088,124.62,124.58,2.6102321]
[1766485676021,24.51564088,124.62,124.59,0.71]
[1766485676240,8.24476996,124.62,124.59,0.71]
[1766485676447,14.64,124.61,124.59,0.71]
[1766485676746,0.22,124.59,124.56,0.71]
[1766485677148,2.1202321,124.6,124.56,0.71]
[1766485677443,0.22,124.6,124.57,0.71]
[1766485677943,22.66919642,124.58,124.57,0.71]
[1766485678140,8.24576091,124.6,124.57,0.71]
[1766485678349,8.0288403,124.59,124.57,0.71]
[1766485683047,7.5019043,124.59,124.57,0.71]
[1766485686233,0.22,124.58,124.55,0.72]
[1766485686957,24.11284812,124.58,124.55,0.72]
[1766485687333,24.33284812,124.58,124.55,0.72]
[1766485687561,2.1202321,124.57,124.54,0.72]
[1766485688157,24.11672494,124.56,124.54,0.72]
[1766485688946,0.22,124.57,124.54,0.72]
[1766485689161,32.36436066,124.57,124.54,0.72]
[1766485690161,8.24763572,124.57,124.54,0.72]
[1766485690340,24.11672494,124.56,124.54,0.72]
[1766485693662,8.24763572,124.57,124.54,0.72]
[1766485693864,32.36436066,124.57,124.54,0.72]
[1766485695270,34.26459276,124.57,124.54,0.72]
[1766485698048,0.22,124.56,124.53,0.72]
[1766485698762,0.22,124.55,124.53,0.72]
[1766485699370,34.26532644,124.56,124.53,0.72]
[1766485701566,10.1486015,124.56,124.53,0.72]
[1766485701772,0.22,124.56,124.53,0.72]
[1766485703576,0.22,124.56,124.52,1.9002321]
[1766485703577,33.12884097,124.58,124.54,1.9002321]
[1766485703750,10.14699038,124.59,124.55,0.72]
[1766485707378,9.92699038,124.59,124.55,0.72]
[1766485707675,2.1202321,124.58,124.55,0.72]
[1766485707879,0.22,124.58,124.55,0.72]
[1766485710058,10.14699038,124.59,124.55,0.72]
[1766485718888,8.24675828,124.59,124.55,0.72]
[1766485721097,2.97343393,124.58,124.53,0.68]
[1766485721273,0.22,124.57,124.54,0.68]
[1766485723191,8.24776454,124.57,124.54,0.68]
[1766485723693,8.02776454,124.57,124.54,0.68]
[1766485726097,8.02776454,124.57,124.55,0.68]
[1766485734200,8.02697062,124.58,124.55,0.68]
[1766485734505,0.22,124.57,124.55,0.68]
[1766485735309,8.24778636,124.57,124.55,0.68]
[1766485738806,8.24778636,124.57,124.53,0.68]
[1766485739194,8.24778636,124.57,124.54,0.68]
[1766485740505,38.7544968,124.57,124.5,0.68]
[1766485740708,38.7544968,124.57,124.53,0.68]
[1766485740709,0.22,124.56,124.53,0.68]
[1766485740907,8.24882564,124.56,124.53,0.68]
[1766485741495,8.24882564,124.56,124.53,3.65343393]
[1766485743093,8.24882564,124.56,124.53,0.68]
[1766485743295,8.02882564,124.56,124.54,0.68]
[1766485743518,18.4654726,124.57,124.55,0.68]
[1766485744618,18.4654726,124.57,124.56,0.68]
[1766485745007,18.4654726,124.57,124.55,2.97343393]
[1766485745197,18.4654726,124.57,124.55,0.68]
[1766485755932,8.02729548,124.58,124.56,0.69]
[1766485757858,8.24729548,124.58,124.56,0.69]
[1766485758229,8.24729548,124.58,124.55,0.69]
[1766485761219,0.22,124.57,124.54,0.69]
[1766485763234,8.02825947,124.56,124.54,0.69]
[1766485770934,8.247922,124.57,124.54,0.69]
[1766485776648,8.027922,124.57,124.54,0.69]
[1766485776858,24.08876041,124.58,124.55,0.7]
[1766485777360,8.02719653,124.58,124.55,0.7]
[1766485777662,8.24719653,124.58,124.55,0.7]
[1766485779263,11.22063046,124.58,124.55,0.7]
[1766485779958,10.15048461,124.58,124.55,0.7]
[1766485781956,8.24719653,124.58,124.55,0.7]
[1766485782145,10.15048461,124.58,124.55,0.7]
[1766485790767,9.93048461,124.58,124.55,0.7]
[1766485792267,10.15048461,124.58,124.55,0.7]
[1766485796669,8.24719653,124.58,124.55,0.7]
[1766485796965,10.15048461,124.58,124.55,0.7]
[1766485798466,1.90328808,124.57,124.55,0.7]
[1766485799868,1.90328808,124.58,124.55,0.7]
[1766485801370,9.93030706,124.58,124.55,0.7]
[1766485803872,10.15030706,124.58,124.55,0.7]
[1766485804673,1.90328808,124.57,124.55,0.7]
[1766485805869,9.93030706,124.58,124.55,0.7]
[1766485810173,8.02701898,124.58,124.55,0.7]
[1766485810474,8.24701898,124.58,124.55,0.7]
[1766485812888,9.93030706,124.58,124.55,0.7]
[1766485813180,2.12328808,124.57,124.53,0.67]
[1766485813676,1.90328808,124.57,124.53,0.67]
[1766485815281,9.93105029,124.57,124.53,0.67]
[1766485818286,8.02776221,124.57,124.53,0.67]
[1766485818484,9.93105029,124.57,124.53,0.67]
[1766485827092,10.15105029,124.57,124.53,0.67]
[1766485830798,2.12328808,124.56,124.53,0.67]
[1766485831096,2.12328808,124.55,124.53,0.67]
[1766485831993,8.24894652,124.55,124.53,0.67]
[1766485832176,10.1522346,124.55,124.53,0.67]
[1766485832997,10.1522346,124.55,124.51,0.67]
[1766485835003,9.93186706,124.56,124.52,0.67]
[1766485835389,10.15186706,124.56,124.52,0.67]
[1766485835616,8.24772585,124.57,124.52,0.67]
[1766485835903,10.15101393,124.57,124.53,0.67]
[1766485836581,1.90328808,124.56,124.53,0.67]
[1766485836782,8.24772585,124.57,124.53,0.67]
[1766485836783,9.93101393,124.57,124.53,0.67]
[1766485837306,10.15101393,124.57,124.53,0.67]
[1766485837485,8.24726127,124.58,124.54,0.72]
[1766485837797,10.15054935,124.58,124.54,0.72]
[1766485839398,10.43767296,124.59,124.54,0.72]
[1766485839599,20.3675489,124.59,124.55,0.67]
[1766485839801,20.5875489,124.59,124.55,0.67]
[1766485839991,21.6577511,124.59,124.55,0.67]
[1766485841307,11.00063072,124.58,124.55,0.67]
[1766485841501,11.22063072,124.58,124.55,0.67]
[1766485843286,2.97349028,124.57,124.55,0.67]
[1766485843608,2.97349028,124.56,124.54,0.67]
[1766485843904,2.97349028,124.55,124.52,0.67]
[1766485844102,0.22,124.56,124.5,0.67]
[1766485844103,2.97349028,124.53,124.5,0.67]
[1766485844311,2.97349028,124.52,124.5,0.67]
[1766485844697,2.97349028,124.51,124.5,0.67]
[1766485846118,0.68,124.5,124.47,0.2]
[1766485846301,3.65349028,124.48,124.42,14.86]
[1766485846505,3.65349028,124.48,124.43,8.03663689]
[1766485846506,2.97349028,124.47,124.43,8.03663689]
[1766485847503,2.97349028,124.48,124.43,11.01012717]
[1766485848015,11.6869093,124.48,124.43,8.03663689]
[1766485848221,2.97349028,124.47,124.44,0.67]
[1766485849221,2.97349028,124.46,124.44,0.67]
[1766485851425,2.97349028,124.46,124.44,0.67]
[1766485851602,3.65349028,124.47,124.44,0.67]
[1766485853624,0.68,124.47,124.44,0.67]
[1766485853825,3.65349028,124.47,124.44,0.67]
[1766485856330,0.68,124.47,124.44,0.67]
[1766485856505,3.65349028,124.47,124.44,0.67]
[1766485860927,2.97349028,124.48,124.44,0.67]
[1766485861238,11.68655989,124.49,124.45,0.67]
[1766485861639,8.71306961,124.49,124.45,0.67]
[1766485861831,11.68655989,124.49,124.45,0.67]
[1766485863635,8.71306961,124.49,124.45,0.67]
[1766485863936,11.68655989,124.49,124.45,0.67]
[1766485865637,33.12996869,124.5,124.45,11.00871736]
[1766485865838,36.10345897,124.5,124.47,0.67]
[1766485866017,21.44345897,124.5,124.47,0.67]
[1766485866926,18.46996869,124.5,124.47,0.67]
[1766485868836,10.43767296,124.5,124.48,0.66]
[1766485876648,11.15767296,124.5,124.48,0.66]
[1766485877443,10.43767296,124.5,124.48,0.66]
[1766485877653,11.72497533,124.51,124.48,0.66]
[1766485880556,8.75148505,124.51,124.48,0.66]
[1766485882349,0.72,124.5,124.48,0.66]
[1766485882966,28.07116324,124.52,124.49,0.66]
[1766485882967,19.18883672,124.52,124.49,0.66]
[1766485886762,22.162327,124.52,124.49,0.66]
[1766485891770,21.442327,124.52,124.49,0.66]
[1766485891970,0.72,124.51,124.49,0.66]
[1766485892265,22.162327,124.52,124.49,0.66]
[1766485892468,22.162327,124.52,124.47,2.97349028]
[1766485892469,3.64349028,124.5,124.47,0.71]
[1766485893283,0.67,124.5,124.47,0.71]
[1766485893451,3.64349028,124.51,124.47,0.71]
[1766485893984,11.67542664,124.51,124.47,0.71]
[1766485894273,8.70193636,124.51,124.48,0.71]
[1766485897280,11.67542664,124.51,124.48,0.71]
[1766485897777,0.67,124.5,124.48,0.71]
[1766485897986,0.67,124.5,124.47,0.72]
[1766485898165,0.67,124.47,124.45,0.72]
[1766485899182,11.67692081,124.48,124.45,0.72]
[1766485901881,2.97349028,124.47,124.45,0.72]
[1766485902082,1.90641892,124.47,124.45,0.72]
[1766485905982,10.60984945,124.48,124.45,0.72]
[1766485908987,1.90641892,124.47,124.45,0.72]
[1766485912290,8.70343053,124.48,124.45,0.72]
[1766485912493,1.90641892,124.47,124.45,0.72]
[1766485912791,2.57641892,124.48,124.45,0.72]
[1766485917305,0.67,124.48,124.45,0.72]
[1766485920392,2.57641892,124.48,124.45,0.72]
[1766485927216,0.67,124.48,124.45,0.72]
[1766485934501,0.67,124.48,124.45,8.03532805]
[1766485934703,0.67,124.48,124.46,0.72]
[1766485936607,1.90641892,124.5,124.47,0.72]
[1766485936781,10.43767296,124.49,124.47,0.72]
[1766485937708,0.67,124.5,124.47,0.72]
[1766485938383,2.57641892,124.5,124.47,0.72]
[1766485939285,2.57641892,124.49,124.45,22.69530588]
[1766485939486,2.57641892,124.49,124.46,0.72]
[1766485941013,0.67,124.49,124.46,0.72]
[1766485942418,10.60865965,124.5,124.46,0.72]
[1766485945415,2.57641892,124.49,124.46,0.72]
[1766485946216,0.67,124.49,124.46,0.72]
[1766485950218,8.70283167,124.49,124.46,0.72]
[1766485953322,1.90641892,124.5,124.46,0.72]
[1766485953523,1.90641892,124.49,124.46,0.72]
[1766485955317,2.12641892,124.49,124.46,0.72]
[1766485955827,0.22,124.48,124.44,24.60211981]
[1766485955999,0.22,124.48,124.45,0.7]
[1766485957326,9.93933409,124.49,124.45,0.7]
[1766485957532,10.15933409,124.49,124.45,0.7]
[1766485961511,8.25291517,124.49,124.45,0.7]
[1766485961728,10.15933409,124.49,124.45,0.7]
[1766485962032,11.23087107,124.49,124.45,0.7]
[1766485962413,11.01087107,124.49,124.45,0.7]
[1766485962737,0.22,124.49,124.45,0.7]
[1766485965233,3.1979559,124.49,124.45,0.7]
[1766485965528,8.03245826,124.5,124.45,8.73498738]
[1766485965733,11.23041416,124.5,124.46,0.7]
[1766485967039,3.1979559,124.49,124.46,0.7]
[1766485967640,3.1979559,124.48,124.45,0.7]
[1766485973650,0.22,124.48,124.45,0.7]
[1766485973824,11.23104691,124.49,124.45,0.7]
[1766485977664,3.1979559,124.48,124.45,0.7]
[1766485978256,0.22,124.48,124.45,0.7]
[1766485978967,13.41562886,124.47,124.42,0.2]
[1766485979122,3.1979559,124.45,124.42,0.9]
[1766485979442,3.1979559,124.45,124.43,0.7]
[1766485980757,10.65767296,124.42,124.41,0.1]
[1766485980928,13.63562886,124.42,124.38,0.2]
[1766485981129,13.63562886,124.42,124.39,0.7]
[1766485982248,10.43767296,124.42,124.39,0.7]
[1766485984055,11.01371282,124.45,124.41,0.7]
[1766485984855,8.03575692,124.45,124.41,0.7]
[1766485985153,11.01371282,124.45,124.41,0.7]
[1766485986653,0.12,124.49,124.44,0.68]
[1766485986946,21.56870815,124.49,124.45,0.68]
[1766485987444,13.53562886,124.49,124.45,0.68]
[1766485987649,3.0979559,124.49,124.45,0.68]
[1766485988057,11.13076553,124.49,124.45,0.68]
[1766485988350,8.15280963,124.49,124.46,0.68]
[1766485990568,21.56795632,124.5,124.46,0.68]
[1766485990852,10.43767296,124.5,124.47,0.68]
[1766485992856,10.43767296,124.5,124.47,3.6579559]
[1766485994958,10.43767296,124.5,124.47,2.9779559]
[1766485995161,10.43767296,124.5,124.47,3.6579559]
[1766485996267,36.24675658,124.52,124.48,3.6579559]
[1766485996446,36.24675658,124.52,124.49,0.68]
[1766485997266,10.43767296,124.52,124.47,8.03377676]
[1766485997471,10.43767296,124.52,124.5,0.68]
[1766486002059,21.56677121,124.52,124.48,0.68]
[1766486003461,8.1516489,124.51,124.48,0.68]
[1766486004465,8.1516489,124.51,124.47,2.9779559]
[1766486004466,0.12,124.5,124.47,0.68]
[1766486004665,0.12,124.49,124.46,0.68]
[1766486006264,8.15289148,124.49,124.46,0.68]
[1766486007750,0.12,124.48,124.44,11.69359487]
[1766486008096,3.0979559,124.48,124.44,0.68]
[1766486008965,11.13150142,124.48,124.44,0.68]
[1766486013384,2.9779559,124.47,124.44,0.68]
[1766486014773,11.13150142,124.48,124.44,0.68]
[1766486018889,10.43767296,124.49,124.46,0.68]
[1766486025608,10.43767296,124.49,124.47,0.68]
[1766486027099,20.49503566,124.51,124.47,0.68]
[1766486027784,0.12,124.5,124.47,0.68]
[1766486030586,20.37503566,124.51,124.47,0.68]
[1766486030792,20.37503566,124.51,124.47,1.90563169]
[1766486030999,20.37503566,124.51,124.48,0.68]
[1766486031703,20.49503566,124.51,124.48,0.68]
[1766486032103,18.58940397,124.51,124.48,0.68]
[1766486032307,20.49503566,124.51,124.48,0.68]
[1766486033610,18.58940397,124.51,124.48,0.68]
[1766486033813,20.49503566,124.51,124.48,0.68]
[1766486036017,18.58940397,124.51,124.48,0.68]
[1766486036824,20.49503566,124.51,124.48,0.68]
[1766486038618,0.12,124.5,124.46,0.68]
[1766486038814,10.0584054,124.49,124.46,0.68]
[1766486040404,9.9384054,124.49,124.46,0.68]
[1766486040617,0.12,124.48,124.46,0.68]
[1766486042428,10.0584054,124.49,124.46,0.68]
[1766486056136,8.15277371,124.49,124.46,0.68]
[1766486056328,10.0584054,124.49,124.46,0.68]
[1766486059726,8.15277371,124.49,124.46,0.68]
[1766486059937,10.0584054,124.49,124.46,0.68]
[1766486064238,40.1522839,124.53,124.48,0.7]
[1766486064239,14.78,124.52,124.48,0.7]
[1766486064431,27.12330465,124.52,124.48,0.7]
[1766486065161,0.12,124.51,124.48,0.7]
[1766486065946,8.151575,124.51,124.48,0.7]
[1766486066547,10.05720669,124.51,124.48,0.7]
[1766486066936,8.151575,124.51,124.48,0.7]
[1766486067142,10.05720669,124.51,124.48,0.7]
[1766486069644,8.151575,124.51,124.48,0.7]
[1766486069847,10.05720669,124.51,124.48,0.7]
[1766486070544,8.151575,124.51,124.48,0.7]
[1766486070755,10.05720669,124.51,124.48,0.7]
[1766486071263,8.151575,124.51,124.48,0.7]
[1766486073754,10.05720669,124.51,124.48,0.7]
[1766486074952,35.15443314,124.52,124.48,0.7]
[1766486075148,33.24880145,124.52,124.49,0.7]
[1766486075741,35.15443314,124.52,124.49,0.7]
[1766486083962,36.22575585,124.52,124.49,0.7]
[1766486088563,33.24880145,124.52,124.49,0.7]